Cogmind - Beta 15 @@@ ROGUE MODE // 2025.08.23 @ 09:06:42 Player: the Result: Destroyed by Executioner with Helical Railgun Performance ------------- Evolutions (9) 4500 Regions Visited (25) 5000 Robots Destroyed (283) 1415 Value Destroyed (11883) 11883 Prototype IDs (58) 1160 Alien Tech Used (3) 600 Bonus (6477) 6477 TOTAL SCORE: 31035 Bonus ------- High Alert Combat Kills 760 Follower Combat Kills 781 Entered DSFs 500 Met Zhirov 300 Met Warlord at Base 500 MAIN.C Attacked Warlord 500 Warlord Defense Kills 250 Acquired SGEMP 2000 Delivered SGEMP 2000 Friendly Fire -1114 Cogmind --------- Core Integrity 0/1600 Matter 107/300 Energy 56/100 System Corruption 4% Temperature Cool (0) Movement Core (50) Location -1/Command Parts ------- > --- POWER (3) -------- (None) > --- PROPULSION (6) --- (None) > --- UTILITY (12) ----- Hacking Suite > --- WEAPON (4) ------- (None) > --- INVENTORY (5) ---- Centrium Leg Enhanced Nova Cannon Compact Linear Accelerator Peak State ------------ > --- POWER ------------ Neutrino-Quantum Core > --- PROPULSION ------- Flying Centrium-ITA Exoskeleton > --- UTILITY ---------- Armored Scrap Engine 2N-1CE's Frost Array Huge Storage Unit Spectral Analyzer Advanced Signal Interpreter SHELL Armor System Mapper > --- WEAPON ----------- Hpw. Thermic Neutralizer Construct/G > --- INVENTORY -------- Improved Thunder Leg Advanced Cooling System High-capacity Storage Unit Advanced Energy Well Particle Accelerator Quantum Capacitor Advanced Weapon Cycler Transmission Jammer ECM Suite Improved Cloaking Device Advanced Powered Armor Transdimensional Reconstructor Warp Gun Heavy Quantum Rifle High-powered Disruptor Cannon Null Cannon Heavy Hardcell Cannon Omega Cannon [Rating: 176] Favorites ----------- Power Constructs Engine Ion Engine Power Core Constructs Reactor Particle Reactor Propulsion Light Treads Treads Light Treads Leg Thunder Leg Wheel Armored Wheel Flight Unit Constructs Utility Armored Scrap Engine Device Armored Scrap Engine Storage High-capacity Storage Unit Processor Advanced Signal Interpreter Hackware System Mapper Protection Layered Heavy Armor Plating Weapon Constructs Energy Gun Constructs Energy Cannon EM Pulse Cannon Ballistic Gun Enhanced Autogun Ballistic Cannon Heavy Assault Cannon Launcher Neutron Missile Launcher Special Weapon Mining Laser Slashing Weapon Falx Piercing Weapon Force Lance Special Melee Weapon Advanced Datajack Build | -11 -10 -10 -8 -8 -8 -6 -6 -5 -5 -5 -5 -4 -4 -4 -4 -4 -4 -4 -3 -3 -3 -2 -2 -1 -1 ------- Run | Yrd Mat Sub Mat Sto Rec Fac DSF Fac Upp Upp War Pro Fac Was Fac Upp Upp Zhi Pro Res Tes Res Qua Acc Com Slots Evolved 18 | . . . 4 . . 4 . 2 . . . . 2 . . . . . . 2 . 2 . 2 . Power 2 | . . . 1 . . . . . . . . . . . . . . . . . . . . 1 . Propulsion 4 | . . . 1 . . 1 . 1 . . . . 1 . . . . . . . . . . . . Utility 10 | . . . 2 . . 2 . 1 . . . . 1 . . . . . . 2 . 1 . 1 . Weapon 2 | . . . . . . 1 . . . . . . . . . . . . . . . 1 . . . Parts Attached 160 | 9 6 2 21 24 9 1 . 18 1 1 7 . 3 3 6 1 . 2 . 10 13 6 3 12 2 Power 15 | 1 . . 4 8 . . . . . . . . . . . . . . . . . 1 . . 1 Engine 5 | 1 . . 1 2 . . . . . . . . . . . . . . . . . . . . 1 Core 8 | . . . 3 5 . . . . . . . . . . . . . . . . . . . . . Reactor 2 | . . . . 1 . . . . . . . . . . . . . . . . . 1 . . . Propulsion 21 | 2 1 2 2 6 2 . . 2 . . 1 . . . . . . . . 1 . . . 2 . Treads 15 | 2 1 2 2 6 2 . . . . . . . . . . . . . . . . . . . . Leg 3 | . . . . . . . . 1 . . 1 . . . . . . . . 1 . . . . . Wheel 1 | . . . . . . . . 1 . . . . . . . . . . . . . . . . . Hover . | . . . . . . . . . . . . . . . . . . . . . . . . . . Flight 2 | . . . . . . . . . . . . . . . . . . . . . . . . 2 . Utility 85 | 4 2 . 11 3 4 1 . 16 1 1 6 . 2 3 5 . . 2 . 6 9 2 1 5 1 Device 48 | 3 1 . 5 3 4 . . 7 1 1 3 . 1 2 5 . . 1 . 3 3 1 1 3 . Storage 9 | 1 1 . 2 . . 1 . 1 . . . . . . . . . . . 2 1 . . . . Processor 8 | . . . 1 . . . . 2 . . 1 . . 1 . . . . . . 1 . . 2 . Hackware 4 | . . . 1 . . . . 1 . . . . 1 . . . . . . . . . . . 1 Protection 16 | . . . 2 . . . . 5 . . 2 . . . . . . 1 . 1 4 1 . . . Artifact . | . . . . . . . . . . . . . . . . . . . . . . . . . . Weapon 39 | 2 3 . 4 7 3 . . . . . . . 1 . 1 1 . . . 3 4 3 2 5 . Energy Gun 14 | 1 1 . 2 5 . . . . . . . . . . . . . . . . 1 1 . 3 . Energy Cannon 7 | . . . 1 1 . . . . . . . . . . . . . . . . 2 . 2 1 . Ballistic Gun 5 | 1 . . . 1 2 . . . . . . . . . . . . . . 1 . . . . . Ballistic Cannon 4 | . . . . . 1 . . . . . . . . . . . . . . 1 1 . . 1 . Launcher 2 | . . . 1 . . . . . . . . . . . 1 . . . . . . . . . . Special Weapon 4 | . 2 . . . . . . . . . . . . . . 1 . . . . . 1 . . . Impact Weapon . | . . . . . . . . . . . . . . . . . . . . . . . . . . Slashing Weapon 1 | . . . . . . . . . . . . . 1 . . . . . . . . . . . . Piercing Weapon 1 | . . . . . . . . . . . . . . . . . . . . 1 . . . . . Special Melee Weapon 1 | . . . . . . . . . . . . . . . . . . . . . . 1 . . . Unidentified Prototypes 31 | . . . 2 5 1 . . . . . 4 . 1 . 1 . . 3 . . 8 1 1 3 1 Corrupted Parts 1 | . . . . . 1 . . . . . . . . . . . . . . . . . . . . System Corruption 3 | . . . . . 3 . . . . . . . . . . . . . . . . . . . . Parts Lost 39 | . 1 . 1 6 . . 2 2 . . . . . 2 2 . . . . . 4 9 2 4 4 Power 7 | . . . . 3 . . 1 . . . . . . . . . . . . . . 1 . 1 1 Propulsion 3 | . . . . 1 . . . . . . . . . . . . . . . . . . . 1 1 Utility 22 | . . . 1 . . . . 2 . . . . . 2 2 . . . . . 3 7 2 1 2 Weapon 7 | . 1 . . 2 . . 1 . . . . . . . . . . . . . 1 1 . 1 . Highest Loss Streak 4 | . 1 . 1 2 . . 2 1 . . . . . 2 2 . . . . . 3 4 2 3 4 To Critical Strikes 2 | . . . . . . . . . . . . . . . . . . . . . 1 1 . . . Average Backups 15 | 2 11 14 18 23 21 17 17 18 17 17 18 17 18 11 2 3 3 4 4 9 17 6 2 4 4 Power 1 | . 1 . 2 4 2 . . . 1 2 1 1 1 1 1 1 1 . . 1 1 . . . . Propulsion 1 | 1 6 6 3 3 1 2 4 2 . . . . . . . . . . . . . . . 1 1 Utility 8 | . 2 4 8 9 7 8 7 13 15 14 14 15 15 9 . 1 1 2 3 5 11 3 . . . Weapon 3 | . 2 2 3 6 9 6 6 2 . 1 1 1 1 . . 1 1 1 . 1 2 1 . 1 2 Tool/Special . | . . . . . . . . . . . . . . . . . . . . . . . . . . Unused Backups 123 | . 4 1 8 8 11 2 1 33 2 3 8 . 6 12 2 . 1 2 . 1 13 2 . 2 1 Power 13 | . . 1 . . 4 . . 1 . . 2 . . . . . . 1 . 1 3 . . . . Propulsion 34 | . 4 . 2 3 5 . 1 13 1 . . . 1 . . . . . . . 1 . . 2 1 Utility 31 | . . . 1 2 . . . 2 1 . 3 . 2 10 1 . . 1 . . 7 1 . . . Weapon 45 | . . . 5 3 2 2 . 17 . 3 3 . 3 2 1 . 1 . . . 2 1 . . . Tool/Special . | . . . . . . . . . . . . . . . . . . . . . . . . . . Average Slot Usage (%) 62 | . 100 100 96 99 68 43 53 46 46 47 48 52 52 47 48 52 52 50 52 56 54 37 25 12 14 Engine 3 | . 14 14 2 4 6 6 6 3 2 . . . . . . . . . . . . . . . 1 Core 3 | . . . 15 13 5 . . . 2 5 4 . . . . . . . . . . . 1 2 . Reactor 1 | . . . . . . . . 1 . . . 5 5 5 5 5 5 5 5 4 4 2 2 . . Treads 8 | . 28 28 26 26 14 . . 1 1 . . . . . 1 . . 2 5 3 . . . . . Leg 1 | . . . . . . . . . . . . 5 5 5 . . . . . . 4 2 . . . Wheel 1 | . . . . . 2 6 6 2 3 5 4 . . . 2 5 5 2 . . . . . . . Device 13 | . 14 14 14 16 12 16 26 11 13 11 7 11 14 10 9 15 15 13 15 16 15 13 6 4 2 Storage 5 | . 14 14 9 9 9 6 6 5 5 5 5 5 5 2 . . . . . 3 4 2 . . . Processor 7 | . . . 7 9 5 . . 4 5 5 8 11 10 12 15 15 15 15 15 14 11 4 4 . 2 Hackware 1 | . . . . . . . . . . . . . 4 5 5 5 5 5 5 4 4 4 3 . 3 Protection 2 | . . . 2 1 2 . . 4 3 5 6 5 . . 2 . . . . 2 3 1 . . . Energy Gun 2 | . 23 11 9 13 . . . . . . . . . . . . . . . . . 1 . 2 . Energy Cannon 1 | . . . 7 1 . 1 6 . 1 3 1 . 1 5 3 . 5 5 5 3 . . 2 . . Ballistic Gun 1 | . 4 14 . . 4 . . . . . . . . . . . . . . . . . . . . Ballistic Cannon 2 | . . . . . 4 4 . 4 3 1 3 5 3 . 1 5 . . . . 3 . . . . Peak Build Rating 176 | 7 8 9 29 34 55 60 62 97 91 92 109 108 133 131 119 116 109 114 118 150 176 166 76 73 33 Average Rating 77 | 5 7 8 23 29 42 51 61 78 85 90 97 107 123 117 111 109 108 108 111 129 156 111 68 36 24 On Entrance 74 | . 7 8 9 26 33 47 60 54 89 91 92 109 107 128 117 109 109 109 111 111 150 114 62 58 24 Naked Turns 80 | . . . . . . . . . . . . . . . . . . . . . . . . 80 . Heaviest Build 179 | 15 30 30 67 109 111 71 71 82 84 83 80 68 119 105 57 49 46 46 57 142 179 103 31 31 6 Greatest Support 179 | 40 40 40 60 60 71 34 34 86 114 114 139 139 166 166 166 94 94 94 94 174 179 113 32 54 10 Greatest Overweight (x) 33 | . . . 1 1 33 2 2 2 . . . . . . . . . . . 1 1 6 . . . Average Overweight (x) . | . . . . . 1 1 1 . . . . . . . . . . . . . . . . . . Largest Inventory Capacity 25 | 8 15 15 25 25 25 20 20 20 20 20 20 20 25 25 5 5 5 5 5 25 25 20 5 5 5 Average Capacity 18 | 7 14 15 18 24 24 20 20 20 20 20 20 20 22 13 5 5 5 5 5 17 21 15 5 5 5 Most Carried 25 | 5 15 15 20 25 25 20 20 20 20 20 20 20 25 25 5 5 5 5 5 18 25 18 5 5 5 Average Carried 17 | 2 11 14 18 23 23 17 17 19 18 18 19 20 21 13 4 4 4 4 4 9 20 9 4 4 4 Final Capacity 25 | 8 15 15 20 25 20 20 20 20 20 20 20 20 25 5 5 5 5 5 5 20 20 5 5 5 5 Final Carried 25 | 5 15 15 20 25 20 15 20 18 20 18 20 20 25 3 5 5 5 5 5 18 19 5 4 5 3 Scrap Engine Consumption 263 | . . . . . 61 4 3 56 12 5 16 1 10 1 13 2 2 6 1 10 19 32 4 5 . Constructs Created 8 | . . . . . 4 . . . . . . . . . . . . . . . . 3 . 1 . Constructs Modified 100 | . . . . . 20 3 . 24 7 4 6 . 4 . 6 1 . 2 . 8 5 7 1 2 . Class Distribution -------------------- 29% | Hacker-Construct 18% | Mutant 17% | Commander-Construct 16% | Construct 6% | Hacker-Mutant 6% | Scavenger-Mutant 4% | Commander-Mutant Dominant Class ---------------- Mutant | -10/Materials Mutant | -10/Subcaves Mutant | -8/Materials Mutant | -8/Storage Commander-Construct | -8/Recycling Commander-Construct | -6/Factory Commander-Construct | -6/DSF Construct | -5/Factory Construct | -5/Upper Caves Construct | -5/Upper Caves Commander-Construct | -5/Warlord Construct | -4/Proximity Caves Hacker-Construct | -4/Factory Hacker-Construct | -4/Waste Hacker-Construct | -4/Factory Hacker-Construct | -4/Upper Caves Hacker-Construct | -4/Upper Caves Hacker-Construct | -4/Zhirov Hacker-Construct | -3/Proximity Caves Hacker-Construct | -3/Research Hacker-Construct | -3/Testing Hacker-Mutant | -2/Research Hacker-Mutant | -2/Quarantine Mutant | -1/Access Mutant | -1/Command Resources | -11 -10 -10 -8 -8 -8 -6 -6 -5 -5 -5 -5 -4 -4 -4 -4 -4 -4 -4 -3 -3 -3 -2 -2 -1 -1 ----------- Run | Yrd Mat Sub Mat Sto Rec Fac DSF Fac Upp Upp War Pro Fac Was Fac Upp Upp Zhi Pro Res Tes Res Qua Acc Com Matter Collected 6526 | 249 196 72 357 434 575 . 312 1367 178 228 114 54 448 . 342 83 114 83 135 206 723 197 32 6 21 Remotely . | . . . . . . . . . . . . . . . . . . . . . . . . . . Salvage Created 13796 | 167 328 20 1037 976 1596 . 248 2203 170 279 111 62 1122 . 1028 118 119 111 182 755 2561 351 130 104 18 Parts 710 | 14 31 . 61 37 78 . 17 111 10 12 4 7 60 . 49 9 3 . 9 43 128 12 8 4 3 Haulers Intercepted 13 | . 1 . 3 5 2 . . . . . . . 1 . 1 . . . . . . . . . . Recyclers Shooed 8 | . . . . . 3 . . 4 . . . . . . 1 . . . . . . . . . . Parts Field Recycled . | . . . . . . . . . . . . . . . . . . . . . . . . . . Retrieved Matter . | . . . . . . . . . . . . . . . . . . . . . . . . . . Parts Self-Destructed 56 | . . 9 . . . . . . 7 15 . 7 . . . 7 3 . 8 . . . . . . Prevented 2 | . . . . . . . . . . 2 . . . . . . . . . . . . . . . Kills | -11 -10 -10 -8 -8 -8 -6 -6 -5 -5 -5 -5 -4 -4 -4 -4 -4 -4 -4 -3 -3 -3 -2 -2 -1 -1 ------- Run | Yrd Mat Sub Mat Sto Rec Fac DSF Fac Upp Upp War Pro Fac Was Fac Upp Upp Zhi Pro Res Tes Res Qua Acc Com Combat Hostiles Destroyed 180 | . 7 . 14 10 4 . 5 25 5 7 2 2 14 . 15 6 1 . 5 10 37 5 3 3 . Melee 1 | . . . . . . . . . . . . . . . 1 . . . . . . . . . . Guns 17 | . 7 . 3 3 2 . . . . . . . . . . . . . . . . 2 . . . Cannons 133 | . . . 6 5 2 . 5 25 5 7 2 2 14 . 11 . 1 . 2 10 33 . 3 . . AOE 22 | . . . 5 1 . . . . . . . . . . 3 6 . . 3 . 1 . . 3 . Classes Destroyed 25 | 2 7 1 2 . 3 . 2 1 . . 2 1 1 . . . . . . . 3 . . . . Worker 25 | . 1 . 4 2 1 . . 2 . . . . 2 . 3 . . . . 1 9 . . . . Builder 19 | . 1 . 4 . 7 . . 2 . . . . 3 . 1 . . . . . 1 . . . . Tunneler 14 | 4 . . . . 3 . . 3 . . . . . . 2 . . . . 2 . . . . . Hauler 13 | . 1 . 3 5 2 . . . . . . . 1 . 1 . . . . . . . . . . Recycler 9 | 1 . . 1 . 2 . . 3 . . . . 1 . . . . . . . 1 . . . . Mechanic 2 | . . . . . . . . . . . . . 1 . . . . . . . 1 . . . . Operator 4 | . 1 . . . . . . 1 . . . . . . . . . . . 1 . . . . 1 Drone 1 | . . . . . . . . . . . . 1 . . . . . . . . . . . . . Turret 1 | . . 1 . . . . . . . . . . . . . . . . . . . . . . . Watcher 14 | . 3 . 2 1 . . . 2 . . . . 1 . 3 . . . . . 2 . . . . Swarmer 38 | . 6 . . 1 . . . . 4 4 . . 4 . 4 4 . . 3 . 1 2 2 3 . Cutter 2 | . . . . . . . 2 . . . . . . . . . . . . . . . . . . Saboteur 1 | . . . . . . . . . . . . . . . . . . . . . 1 . . . . Grunt 47 | . 1 . 9 8 . . . 6 . . . . 1 . 4 2 . . . 1 15 . . . . Brawler 6 | . . . . . . . . 3 . . . . . . . . . . . . 3 . . . . Duelist 4 | . . . . . . . . . . . 1 . . . 1 . . . . . 2 . . . . Sentry 17 | . . . 4 1 . . 1 3 1 . . . 2 . 1 . . . . 3 . 1 . . . Demolisher 2 | . . . . . 2 . . . . . . . . . . . . . . . . . . . . Specialist 4 | . . . . . . . 2 2 . . . . . . . . . . . . . . . . . Hunter 12 | . . . 1 . . . . 3 . 2 . . . . . . . . 2 . 2 2 . . . Programmer 41 | . . . . . 1 . . 8 . 1 . 1 7 . 5 . 1 . . 6 10 . 1 . . Behemoth 1 | . . . . . . . . . . . 1 . . . . . . . . . . . . . . Striker 2 | . . . . . . . . . . . . . . . . . . . . . 2 . . . . Alpha 7 1 | . . . . . . . . . . . . . . . . . . . . . 1 . . . . Subdweller 1 | . . . . . 1 . . . . . . . . . . . . . . . . . . . . Thug 2 | . . . . 2 . . . . . . . . . . . . . . . . . . . . . Best Kill Streak 9 | 5 5 1 9 3 2 . 3 5 4 4 1 2 8 . 6 6 1 . 3 2 7 2 2 3 1 Combat Bots Only 6 | . 4 . 3 3 1 . 3 5 4 4 1 2 4 . 5 6 1 . 3 2 6 2 2 3 . Max Kills in Single Turn 5 | 1 2 1 5 3 1 . 1 1 1 1 1 1 2 . 4 4 1 . 2 1 3 1 1 3 1 Gunslinging . | . . . . . . . . . . . . . . . . . . . . . . . . . . Exploded 4 | . . . 3 1 . . . . . . . . . . 3 4 . . 2 . 1 . . 3 . Melee 1 | . . . . . . . . . . . . . . . 1 . . . . . . . . . . Uniques/NPCs Destroyed . | . . . . . . . . . . . . . . . . . . . . . . . . . . Combat | -11 -10 -10 -8 -8 -8 -6 -6 -5 -5 -5 -5 -4 -4 -4 -4 -4 -4 -4 -3 -3 -3 -2 -2 -1 -1 -------- Run | Yrd Mat Sub Mat Sto Rec Fac DSF Fac Upp Upp War Pro Fac Was Fac Upp Upp Zhi Pro Res Tes Res Qua Acc Com Hostile Shots Fired 1724 | . 36 15 47 44 12 . 55 174 19 75 61 . 90 7 114 5 4 . 44 49 295 385 30 116 47 Missed 559 | . 8 7 14 18 1 . 16 42 7 24 31 . 24 1 31 1 1 . 11 17 94 129 8 52 22 Hits 1165 | . 28 8 33 26 11 . 39 132 12 51 30 . 66 6 83 4 3 . 33 32 201 256 22 64 25 Melee 17 | . . . . . . . 3 4 . . . . . 6 1 . . . . . 2 1 . . . Projectile 1148 | . 28 8 33 26 11 . 36 128 12 51 30 . 66 . 82 4 3 . 33 32 199 255 22 64 25 AOE 2 | . . . . . . . 2 . . . . . . . . . . . . . . . . . . Critical Strikes 63 | . 1 . 1 3 . . 2 7 . 2 1 . 1 1 3 . . . 1 3 11 18 3 3 2 Damage Taken 23267 | . 306 48 477 801 186 . 857 2415 176 611 626 . 1136 245 1340 138 64 . 440 723 4351 5620 520 1467 720 Core 3629 | . 65 12 68 89 18 . 60 87 . 67 37 . 74 . 98 . . . 42 24 354 826 120 1062 526 Absorbed by Shields 607 | . . . . 25 51 . 92 48 . 210 66 . . . 91 . . . . . . . . . 24 Reduced by Siege Mode 76 | . . . . . . . . . . . . . . . . . . . 76 . . . . . . Regen/Repaired (Parts) 10627 | . . . 72 34 9 . 30 1308 319 197 342 50 608 . 950 239 . 482 100 542 2359 2862 7 117 . Core Remaining (%) 73 | 100 . 69 . . 68 . 92 . . . . 80 . . . . . . 81 . 70 . 31 . . Volleys Fired 1127 | 11 43 8 50 48 143 3 28 157 15 44 20 17 74 11 93 13 15 6 27 79 144 38 24 14 2 Largest 2 | 2 2 2 2 2 2 1 1 1 1 1 1 1 1 1 1 1 1 1 1 1 1 2 1 2 1 Hottest 515 | 60 100 100 103 124 62 69 69 40 25 25 100 100 100 84 84 56 56 56 56 453 515 178 120 150 120 Shots Fired 1263 | 22 72 11 96 85 151 3 28 157 15 44 20 17 74 11 93 13 15 6 27 78 142 41 24 16 2 Gun 247 | 22 69 6 46 57 15 . . . . . . . . . . . . . . . . 21 . 11 . Cannon 986 | . . . 46 17 136 3 28 157 15 44 20 17 74 11 93 9 15 6 25 78 142 19 24 5 2 Launcher 9 | . . . 3 . . . . . . . . . . . . 4 . . 2 . . . . . . Special 21 | . 3 5 1 11 . . . . . . . . . . . . . . . . . 1 . . . Kinetic 369 | 11 10 3 . . 17 . . 80 . 19 19 17 51 . 36 9 . . . . 96 . . . 1 Thermal 603 | . 3 5 1 16 134 3 28 77 15 25 . . 13 11 44 . 15 6 25 78 45 21 24 13 1 Explosive 9 | . . . 3 . . . . . . . . . . . . 4 . . 2 . . . . . . Electromagnetic 270 | 11 59 3 92 69 . . . . . . . . . . 13 . . . . . 1 19 . 3 . Impact 1 | . . . . . . . . . . . . . . . . . . . . . . 1 . . . Entropic 11 | . . . . . . . . . . . 1 . 10 . . . . . . . . . . . . Robot Hit Streak 17 | 4 8 6 17 9 15 . 3 12 4 4 3 2 5 6 7 7 8 6 5 11 8 5 4 3 1 Robot Miss Streak 10 | 2 3 1 3 7 5 1 3 3 4 4 2 . 10 1 5 . 1 1 1 3 3 5 2 1 . Penetration Max 2 | . . . . . . . . 1 . . . . 1 . . . . . . . 2 . . . . Secondary Targets 2 | . 2 . . . . . . . . . . . . . . . . . . . . . . . . Max Gunslinging Chain 1 | . 1 . . . . . . . . . . . . . . . . . . . . . . . . Capacitor 24 | . . . . . . . . . . . . . . . . . . . . . 24 . . . . Shots Hit Robots 600 | 14 40 4 61 46 105 . 8 87 8 13 10 2 27 9 32 3 3 5 6 25 62 17 11 1 1 Core Hits 303 | 5 18 3 34 35 34 . 5 34 6 6 3 1 15 . 25 9 1 1 5 11 35 6 3 7 1 Critical Kills 8 | . . . . . . . . . . . . . 4 . . . 1 . . . 3 . . . . Critical Parts Destroyed 12 | . . . . . . . . 3 . . . 1 2 . 1 . . . . 1 4 . . . . Critical Strikes 29 | 1 . . 3 2 1 . . 3 . . . 1 6 . 1 . 1 . . 1 8 1 . . . Burn 1 | . . . . 1 . . . . . . . . . . . . . . . . . . . . . Meltdown 1 | . . . . . . . . . . . . . . . . . . . . . 1 . . . . Destroy 20 | . . . . . 1 . . 3 . . . 1 6 . 1 . 1 . . 1 6 . . . . Corrupt 7 | 1 . . 3 1 . . . . . . . . . . . . . . . . 1 1 . . . Melee Attacks 2 | . . . . . . . . . . . . . . . . . . . . . . 2 . . . Impact . | . . . . . . . . . . . . . . . . . . . . . . . . . . Slashing . | . . . . . . . . . . . . . . . . . . . . . . . . . . Piercing . | . . . . . . . . . . . . . . . . . . . . . . . . . . Sneak Attacks 2 | . . . . . . . . . . . . . . . . . . . . . . 2 . . . Combat Hostiles . | . . . . . . . . . . . . . . . . . . . . . . . . . . Follow-up Attacks . | . . . . . . . . . . . . . . . . . . . . . . . . . . Damage Inflicted 48456 | 242 661 44 2492 1230 4051 . 706 5982 383 826 1710 256 4566 1168 3832 590 269 598 923 2651 13648 605 552 434 37 Guns 2339 | 185 621 44 420 660 185 . . . . . . . . . . . . . . . . 201 . 23 . Cannons 42042 | . . . 846 275 3866 . 700 5940 383 826 1699 256 4468 1168 3193 . 269 598 569 2651 13343 404 552 . 36 Explosions 4050 | 57 40 . 1226 295 . . . 42 . . . . 98 . 632 590 . . 354 . 305 . . 411 . Melee . | . . . . . . . . . . . . . . . . . . . . . . . . . . Ramming 25 | . . . . . . . 6 . . . 11 . . . 7 . . . . . . . . . 1 Kinetic 19246 | 65 97 14 . . 185 . . 3154 . 260 1699 256 2588 . 1264 . . . . . 9628 . . . 36 Thermal 22489 | 57 40 . 759 315 3866 . 700 2786 383 566 . . 1352 1168 1543 . 269 598 569 2651 3703 201 552 411 . Explosive 2064 | . . . 467 . . . . . . . . . . . 365 590 . . 354 . 288 . . . . Electromagnetic 4006 | 120 524 30 1266 915 . . . 42 . . . . . . 653 . . . . . 29 404 . 23 . Impact . | . . . . . . . . . . . . . . . . . . . . . . . . . . Slashing . | . . . . . . . . . . . . . . . . . . . . . . . . . . Piercing . | . . . . . . . . . . . . . . . . . . . . . . . . . . Entropic 626 | . . . . . . . . . . . . . 626 . . . . . . . . . . . . Highest Corruption 13 | . . . . 1 5 . . 12 12 4 4 . 2 2 7 7 9 9 9 5 13 . 5 4 4 Average Corruption 4 | . . . . 1 1 . . 7 4 3 4 . 1 2 4 7 7 9 9 3 8 . 2 2 4 Corruption Purged 10 | . . . . . . . . . 10 . . . . . . . . . . . . . . . . Corruption Blocked . | . . . . . . . . . . . . . . . . . . . . . . . . . . Effects 325 | . . . . 6 56 . . 48 15 11 1 . 6 . 23 16 17 9 19 11 81 . 1 3 2 Message Errors 72 | . . . . 1 16 . . 11 4 1 . . . . 5 3 . 5 4 5 15 . . 1 1 Matter Fused 90 | . . . . 1 18 . . 7 4 5 . . 1 . 6 4 4 3 7 3 25 . 1 . 1 Heat Flow Errors 35 | . . . . 1 4 . . 6 1 1 . . 1 . 2 2 5 . . . 11 . . 1 . Energy Discharges 39 | . . . . 2 3 . . 7 2 1 1 . 1 . 3 4 2 . 2 1 10 . . . . Parts Rejected 4 | . . . . . . . . 1 . . . . . . 1 . . . . . 2 . . . . Parts Fused 2 | . . . . . . . . 1 . . . . . . . . . . . . 1 . . . . Data Loss (minor) 52 | . . . . . 11 . . 10 3 2 . . 2 . 3 2 4 1 4 1 8 . . 1 . Data Loss (major) 13 | . . . . . 1 . . 4 . 1 . . 1 . 2 . 1 . 1 . 2 . . . . Misfires 2 | . . . . 1 1 . . . . . . . . . . . . . . . . . . . . Alerts 12 | . . . . . 2 . . 1 1 . . . . . 1 1 1 . 1 . 4 . . . . Misdirections 1 | . . . . . . . . . . . . . . . . . . . . . 1 . . . . Weapon Failures 3 | . . . . . . . . . . . . . . . . . . . . 1 2 . . . . Overload Shots . | . . . . . . . . . . . . . . . . . . . . . . . . . . Overflow Damage 8586 | . 10 . 130 7 504 . 103 775 15 87 208 75 1250 19 852 . 61 99 75 788 3447 . 66 15 . Projectiles 8345 | . . . 7 . 504 . 103 773 15 87 208 75 1192 19 852 . 61 99 62 788 3434 . 66 . . Explosions 241 | . 10 . 123 7 . . . 2 . . . . 58 . . . . . 13 . 13 . . 15 . Melee . | . . . . . . . . . . . . . . . . . . . . . . . . . . Knockbacks 44 | . . . . . . . . 14 . 1 8 . 1 . 3 . . . . . 17 . . . . Impact . | . . . . . . . . . . . . . . . . . . . . . . . . . . Kinetic 39 | . . . . . . . . 14 . 1 7 . 1 . 3 . . . . . 13 . . . . Secondary 5 | . . . . . . . . . . . 1 . . . . . . . . . 4 . . . . Self-Inflicted Damage 286 | . . . 27 71 . . 2 35 . . . . . . 29 69 . . . . . . . 53 . Shots 6 | . . . 1 1 . . . 1 . . . . . . 1 1 . . . . . . . 1 . Rammed 3 | . . . . . . . 2 . . . . . . . . . . . . . . . . . 1 Targets Rammed 5 | . . . . . . . 2 . . . 1 . . . 1 . . . . . . . . . 1 Kicked 1 | . . . . . . . . . . . 1 . . . . . . . . . . . . . . Crushed 1 | . . . . . . . . . . . . . . . 1 . . . . . . . . . . Highest Temperature 867 | . 222 . 194 348 245 . . 265 254 201 322 200 310 197 380 216 198 . . 308 867 255 . 178 . Average Temperature 103 | . 70 . 86 75 51 . . 101 121 101 122 89 93 124 137 101 86 . . 70 167 121 . 107 . Received Heat Transfer 2151 | . 129 42 225 267 7 . . 525 . . 26 . 21 . 60 . . . . 64 515 171 . 90 9 Effects 41 | . 2 . . 6 . . . . . . 2 . 3 . 7 . . . . . 21 . . . . Shutdowns 4 | . . . . . . . . . . . 1 . . . . . . . . . 3 . . . . Energy Bleed 8 | . . . . 1 . . . . . . 1 . . . 2 . . . . . 4 . . . . Interference 15 | . 2 . . 4 . . . . . . . . 3 . 2 . . . . . 4 . . . . Matter Decay 2 | . . . . . . . . . . . . . . . . . . . . . 2 . . . . Short Circuit 3 | . . . . . . . . . . . . . . . . . . . . . 3 . . . . Damage (minor) 4 | . . . . 1 . . . . . . . . . . 3 . . . . . . . . . . Damage (major) 5 | . . . . . . . . . . . . . . . . . . . . . 5 . . . . Siege Activations 1 | . . . . . . . . . . . . . . . . . . . 1 . . . . . . Total Turns 17 | . . . . . . . . . . . . . . . . . . . 17 . . . . . . Longest Duration 17 | . . . . . . . . . . . . . . . . . . . 17 . . . . . . Martial Activations . | . . . . . . . . . . . . . . . . . . . . . . . . . . Shielding Activations . | . . . . . . . . . . . . . . . . . . . . . . . . . . Robots Disrupted 4 | . 1 . . 1 . . . . . . . . . . . . . . . . . 2 . . . Combat Hostiles 4 | . 1 . . 1 . . . . . . . . . . . . . . . . . 2 . . . Robots Corrupted 10 | . . . 2 1 . . . . . . . . . . 2 . . . . . 2 3 . . . Combat Hostiles 6 | . . . . 1 . . . . . . . . . . . . . . . . 2 3 . . . Parts Fried 25 | . . . 9 1 . . . . . . . . . . 4 . . . . . 8 3 . . . Impact Corruptions 5 | . . . . . . . . . . . . . . . . . . . . . 5 . . . . Robots Melted 1 | . . . . . . . . . . . . . . . . . . . . . 1 . . . . Combat Hostiles 1 | . . . . . . . . . . . . . . . . . . . . . 1 . . . . Parts Melted 9 | . . . . 2 1 . . 1 1 3 . . . . . . . . . 1 . . . . . Heat Transferred 11500 | 50 50 . 750 436 3700 . 400 1805 300 500 . . 50 . 100 . 111 300 300 1107 600 222 407 312 . Parts Sabotaged . | . . . . . . . . . . . . . . . . . . . . . . . . . . Parts Stolen . | . . . . . . . . . . . . . . . . . . . . . . . . . . Parts Stripped . | . . . . . . . . . . . . . . . . . . . . . . . . . . Power Chain Reactions 12 | 1 1 . 5 3 . . . . . . . . . . 1 . . . . . . . . 1 . Alert | -11 -10 -10 -8 -8 -8 -6 -6 -5 -5 -5 -5 -4 -4 -4 -4 -4 -4 -4 -3 -3 -3 -2 -2 -1 -1 ------- Run | Yrd Mat Sub Mat Sto Rec Fac DSF Fac Upp Upp War Pro Fac Was Fac Upp Upp Zhi Pro Res Tes Res Qua Acc Com Maximum Alert Level 3 | . . . 1 2 . . . 2 . . . . 1 . 2 . . . . . 3 2 1 2 1 Low Security (%) 66 | 100 100 . 86 37 100 100 100 58 . . . . 49 100 42 . . . . 100 22 . 51 26 . Level 1 24 | . . . 13 52 . . . 32 . . . . 50 . 57 . . . . . 23 66 48 72 100 Level 2 7 | . . . . 9 . . . 9 . . . . . . . . . . . . 34 33 . 1 . Level 3 2 | . . . . . . . . . . . . . . . . . . . . . 20 . . . . Level 4 . | . . . . . . . . . . . . . . . . . . . . . . . . . . Level 5 . | . . . . . . . . . . . . . . . . . . . . . . . . . . High Security . | . . . . . . . . . . . . . . . . . . . . . . . . . . Max Security . | . . . . . . . . . . . . . . . . . . . . . . . . . . Peak Influence 976 | 15 136 . 245 440 182 76 131 418 . . . . 323 108 410 . . . . 94 976 530 232 427 277 Initial 527 | . . . 15 85 166 76 1 58 . . . . 150 108 . . . . . 25 42 527 184 127 272 Average 162 | 3 39 . 69 208 52 30 45 167 . . . . 197 54 184 . . . . 25 480 374 192 234 248 Influence Increases 8935 | 25 349 50 597 1113 316 8 195 1000 110 150 101 35 804 2 751 130 35 5 120 401 1574 378 148 530 8 Destroy 0b10 Robot/C 3980 | . 140 20 280 560 60 . 100 500 100 140 60 20 280 . 300 120 20 . 100 200 740 100 60 80 . Destroy 0b10 Robot/NC 630 | 25 35 . 70 50 180 . . 65 . . . 5 45 . 50 . 5 5 . 20 70 . . . 5 Destroy Leader 792 | . 38 . 90 114 . . 20 124 10 10 . 10 74 . 68 10 10 . 20 60 94 20 10 10 . Allied During Kill 223 | . . . . 172 1 . 3 . . . 11 . . . . . . . . . . . . 36 . Successful Hack 292 | . 26 . 24 20 44 5 . 26 . . . . 48 . 33 . . . . 12 22 . 3 29 . Disable Machine 855 | . 60 . 60 135 . . . 135 . . . . 45 . 90 . . . . . 240 30 45 15 . Destroy Structure 1053 | . 5 . 58 17 31 3 12 120 . . . . 132 2 120 . . . . 94 378 33 15 30 3 Advance Influence 150 | . . . . . . . . . . . . . 150 . . . . . . . . . . . . Partial Spotted 45 | . . . 15 . . . . 15 . . . . . . 15 . . . . . . . . . . Lose Combat Pursuer 915 | . 45 30 . 45 . . 60 15 . . 30 . 30 . 75 . . . . 15 30 195 15 330 . Influence Decreases 8735 | 25 283 86 425 887 562 188 84 695 410 256 110 38 494 312 341 366 209 5 82 362 713 987 265 315 235 Entered New Map 2015 | . . 33 15 117 262 106 1 55 156 23 12 3 . 202 . 152 34 . . 13 35 411 145 85 155 Time Decay 5997 | 25 273 53 380 550 240 82 . 620 254 233 68 35 494 90 321 214 175 5 82 349 638 486 100 190 40 Lost Part 390 | . 10 . 10 60 . . 20 20 . . . . . 20 20 . . . . . 40 90 20 40 40 Lost Ally 257 | . . . 20 84 60 . 63 . . . 30 . . . . . . . . . . . . . . Purge Threat 76 | . . . . 76 . . . . . . . . . . . . . . . . . . . . . Squads Dispatched 50 | . . . 4 6 . 1 2 7 . . . . 3 . 4 . . . . 2 9 1 1 7 3 Investigation 9 | . . . 3 2 . 1 . . . . . . . . . . . . . . 1 . . 1 1 Extermination 17 | . . . . . . . . 5 . . . . 3 . 2 . . . . 2 4 . . 1 . Reinforcement 15 | . . . 1 1 . . 2 2 . . . . . . 2 . . . . . 1 1 1 2 2 Assault 7 | . . . . 2 . . . . . . . . . . . . . . . . 3 . . 2 . Garrison 2 | . . . . 1 . . . . . . . . . . . . . . . . . . . 1 . Intercept . | . . . . . . . . . . . . . . . . . . . . . . . . . . Searches Triggered . | . . . . . . . . . . . . . . . . . . . . . . . . . . Construction Impeded 2 | . . . 1 . . . . . . . . . . . 1 . . . . . . . . . . Haulers Reinforced 1 | . . . . . . . . . . . . . . . 1 . . . . . . . . . . Active Scanning Responses . | . . . . . . . . . . . . . . . . . . . . . . . . . . Cargo Convoy Interrupts . | . . . . . . . . . . . . . . . . . . . . . . . . . . Stealth | -11 -10 -10 -8 -8 -8 -6 -6 -5 -5 -5 -5 -4 -4 -4 -4 -4 -4 -4 -3 -3 -3 -2 -2 -1 -1 --------- Run | Yrd Mat Sub Mat Sto Rec Fac DSF Fac Upp Upp War Pro Fac Was Fac Upp Upp Zhi Pro Res Tes Res Qua Acc Com Distress Signals 23 | . 2 . 3 1 1 . . 1 . . . 1 . . 1 . . . . 2 4 6 . 1 . Communications Jammed 14 | . . . . . . . . . . . . . . . . . . . . . . 14 . . . Distress Signals 14 | . . . . . . . . . . . . . . . . . . . . . . 14 . . . Times Spotted 434 | . 20 4 23 33 7 . 11 34 5 7 66 . 16 6 37 5 1 . 3 13 55 35 12 27 14 Peak Tracking Total 16 | . 5 2 5 5 3 . 7 3 4 4 16 . 4 6 7 4 1 . 2 3 7 12 5 14 12 Tactical Retreats 41 | . 2 1 . 2 . . 3 1 . . 2 . 1 . 7 . . . . 2 4 9 1 6 . Traps | -11 -10 -10 -8 -8 -8 -6 -6 -5 -5 -5 -5 -4 -4 -4 -4 -4 -4 -4 -3 -3 -3 -2 -2 -1 -1 ------- Run | Yrd Mat Sub Mat Sto Rec Fac DSF Fac Upp Upp War Pro Fac Was Fac Upp Upp Zhi Pro Res Tes Res Qua Acc Com Traps Triggered 17 | . . . . 4 . . . 2 . . . . 1 . 1 . . . . 5 3 . . . 1 Indirectly . | . . . . . . . . . . . . . . . . . . . . . . . . . . Trap Hack Attempts . | . . . . . . . . . . . . . . . . . . . . . . . . . . Triggered . | . . . . . . . . . . . . . . . . . . . . . . . . . . Disarmed . | . . . . . . . . . . . . . . . . . . . . . . . . . . Reprogrammed . | . . . . . . . . . . . . . . . . . . . . . . . . . . Reused . | . . . . . . . . . . . . . . . . . . . . . . . . . . Traps Extracted . | . . . . . . . . . . . . . . . . . . . . . . . . . . Installed . | . . . . . . . . . . . . . . . . . . . . . . . . . . Triggered . | . . . . . . . . . . . . . . . . . . . . . . . . . . Machines | -11 -10 -10 -8 -8 -8 -6 -6 -5 -5 -5 -5 -4 -4 -4 -4 -4 -4 -4 -3 -3 -3 -2 -2 -1 -1 ---------- Run | Yrd Mat Sub Mat Sto Rec Fac DSF Fac Upp Upp War Pro Fac Was Fac Upp Upp Zhi Pro Res Tes Res Qua Acc Com Machines Disabled 65 | . 4 . 4 9 . . . 9 . . 1 . 3 . 6 . . . . . 23 2 3 1 . Max in Single Turn 3 | . 1 . 3 2 . . . 2 . . 1 . 1 . 3 . . . . . 2 1 1 1 . Garrison Access 3 | . . . . . . . . . . . . . . . . . . . . . 1 1 . 1 . Machines Repaired . | . . . . . . . . . . . . . . . . . . . . . . . . . . Machines Dismantled . | . . . . . . . . . . . . . . . . . . . . . . . . . . Machines Sabotaged . | . . . . . . . . . . . . . . . . . . . . . . . . . . Overloaded Fab Kills . | . . . . . . . . . . . . . . . . . . . . . . . . . . Hacking | -11 -10 -10 -8 -8 -8 -6 -6 -5 -5 -5 -5 -4 -4 -4 -4 -4 -4 -4 -3 -3 -3 -2 -2 -1 -1 --------- Run | Yrd Mat Sub Mat Sto Rec Fac DSF Fac Upp Upp War Pro Fac Was Fac Upp Upp Zhi Pro Res Tes Res Qua Acc Com Machines Accessed 88 | . 8 . 7 9 10 3 . 9 . 1 6 . 4 . 3 . 1 5 . 5 8 . 3 5 1 Terminals 55 | . 8 . 4 7 6 2 . 4 . . . . 2 . 3 . . . . 4 6 . 3 5 1 Fabricators 3 | . . . . . . . . 2 . . . . 1 . . . . . . . . . . . . Repair Stations 5 | . . . 2 1 . 1 . 1 . . . . . . . . . . . . . . . . . Recycling Units 6 | . . . 1 . 3 . . 1 . . . . . . . . . . . 1 . . . . . Scanalyzers 1 | . . . . . . . . . . . . . . . . . . . . . 1 . . . . Garrison Access 4 | . . . . 1 . . . 1 . . . . 1 . . . . . . . 1 . . . . Total Hacks 209 | . 26 . 24 22 26 4 . 14 . 1 6 . 11 . 9 . 1 18 . 9 21 . 5 9 3 Successful 112 | . 14 . 10 12 13 1 . 5 . 1 6 . 4 . 6 . 1 18 . 2 12 . 3 4 . Failed 96 | . 11 . 14 10 13 3 . 9 . . . . 7 . 3 . . . . 7 9 . 2 5 3 Catastrophic 18 | . 1 . 4 2 1 . . 2 . . . . 2 . . . . . . 3 1 . . 1 1 Database Lockouts 1 | . 1 . . . . . . . . . . . . . . . . . . . . . . . . Manual 90 | . 20 . 12 11 17 2 . 1 . . . . 6 . 7 . . . . 7 5 . 2 . . Terminals 148 | . 26 . 15 19 18 3 . 7 . . . . 9 . 9 . . . . 8 17 . 5 9 3 Fabricators 4 | . . . . . . . . 3 . . . . 1 . . . . . . . . . . . . Repair Stations 10 | . . . 6 1 . 1 . 2 . . . . . . . . . . . . . . . . . Recycling Units 11 | . . . 3 . 6 . . 1 . . . . . . . . . . . 1 . . . . . Scanalyzers 3 | . . . . . . . . . . . . . . . . . . . . . 3 . . . . Garrison Access 5 | . . . . 2 . . . 1 . . . . 1 . . . . . . . 1 . . . . Terminal Hacks 81 | . 10 . 4 10 7 1 . 1 . 1 6 . 3 . 4 . 1 18 . 2 7 . 2 4 . Record 14 | . . . . . . . . . . . 5 . . . . . . 6 . . 2 . . 1 . Part Schematic 5 | . 1 . . . . . . . . . . . . . . . . 4 . . . . . . . Robot Analysis 10 | . . . . . 3 . . . . . . . 2 . . . . 4 . . 1 . . . . Prototype ID Bank 10 | . 2 . . 2 1 . . . . . . . . . . . . 4 . . 1 . . . . Open Door 9 | . . . . 3 . . . . . 1 1 . . . . . 1 . . . . . . 3 . Open DSF 1 | . . . . . . 1 . . . . . . . . . . . . . . . . . . . Level Access Points 3 | . . . . . . . . . . . . . . . . . . . . 1 1 . 1 . . Branch Access Points 5 | . . . 1 . . . . 1 . . . . 1 . 1 . . . . 1 . . . . . Terminal Index 5 | . 1 . 1 1 . . . . . . . . . . 1 . . . . . . . 1 . . Alert Level 4 | . 1 . 1 1 . . . . . . . . . . . . . . . . 1 . . . . Unreport Threat 1 | . . . . 1 . . . . . . . . . . . . . . . . . . . . . Locate Traps 3 | . 2 . . . . . . . . . . . . . . . . . . . 1 . . . . Hauler Manifests 3 | . 1 . . 1 . . . . . . . . . . 1 . . . . . . . . . . Registered Components 2 | . 1 . 1 . . . . . . . . . . . . . . . . . . . . . . Registered Prototypes 1 | . 1 . . . . . . . . . . . . . . . . . . . . . . . . Zone Layout 3 | . . . . 1 1 . . . . . . . . . 1 . . . . . . . . . . Release Object 2 | . . . . . 2 . . . . . . . . . . . . . . . . . . . . Fabricator Hacks 2 | . . . . . . . . 1 . . . . 1 . . . . . . . . . . . . Build 2 | . . . . . . . . 1 . . . . 1 . . . . . . . . . . . . Repair Station Hacks 6 | . . . 4 . . . . 2 . . . . . . . . . . . . . . . . . Scan Component 4 | . . . 3 . . . . 1 . . . . . . . . . . . . . . . . . Repair 2 | . . . 1 . . . . 1 . . . . . . . . . . . . . . . . . Recycling Unit Hacks 2 | . . . . . 1 . . 1 . . . . . . . . . . . . . . . . . Retrieve Components 2 | . . . . . 1 . . 1 . . . . . . . . . . . . . . . . . Scanalyzer 3 | . . . . . . . . . . . . . . . . . . . . . 3 . . . . Insert Component 3 | . . . . . . . . . . . . . . . . . . . . . 3 . . . . Garrison Access Hacks 1 | . . . . . . . . . . . . . . . . . . . . . 1 . . . . Seal Access 1 | . . . . . . . . . . . . . . . . . . . . . 1 . . . . Unauthorized Hacks 17 | . 4 . 2 2 5 . . . . . . . . . 2 . . . . . 1 . 1 . . Terminals 14 | . 4 . 2 1 3 . . . . . . . . . 2 . . . . . 1 . 1 . . Track 1 | . . . . . . . . . . . . . . . . . . . . . . . 1 . . Assimilate 2 | . 2 . . . . . . . . . . . . . . . . . . . . . . . . Botnet 11 | . 2 . 2 1 3 . . . . . . . . . 2 . . . . . 1 . . . . Fabricators . | . . . . . . . . . . . . . . . . . . . . . . . . . . Repair Stations 1 | . . . . 1 . . . . . . . . . . . . . . . . . . . . . Patch 1 | . . . . 1 . . . . . . . . . . . . . . . . . . . . . Recycling Units 2 | . . . . . 2 . . . . . . . . . . . . . . . . . . . . Mask 2 | . . . . . 2 . . . . . . . . . . . . . . . . . . . . Scanalyzers . | . . . . . . . . . . . . . . . . . . . . . . . . . . Garrison Access . | . . . . . . . . . . . . . . . . . . . . . . . . . . Data Cores Recovered 1 | . 1 . . . . . . . . . . . . . . . . . . . . . . . . Used . | . . . . . . . . . . . . . . . . . . . . . . . . . . Hacking Detections 64 | . 8 . 7 6 8 2 . 8 . . . . 3 . 3 . . . . 5 7 . 3 3 1 Full Trace Events 6 | . . . 2 2 . . . . . . . . . . . . . . . . . . . 1 1 Feedback Events . | . . . . . . . . . . . . . . . . . . . . . . . . . . Feedback Blocked . | . . . . . . . . . . . . . . . . . . . . . . . . . . Robot Schematics Acquired . | . . . . . . . . . . . . . . . . . . . . . . . . . . Robots Built . | . . . . . . . . . . . . . . . . . . . . . . . . . . Authchips . | . . . . . . . . . . . . . . . . . . . . . . . . . . Time . | . . . . . . . . . . . . . . . . . . . . . . . . . . Total Robot Build Rating . | . . . . . . . . . . . . . . . . . . . . . . . . . . Part Schematics Acquired 5 | . 1 . . . . . . . . . . . . . . . . 4 . . . . . . . Parts Built 4 | . . . . . . . . 2 . . . . 2 . . . . . . . . . . . . Authchips . | . . . . . . . . . . . . . . . . . . . . . . . . . . Time 170 | . . . . . . . . 53 . . . . 117 . . . . . . . . . . . . Total Part Build Rating 26 | . . . . . . . . 12 . . . . 14 . . . . . . . . . . . . Parts Repaired 2 | . . . 1 . . . . 1 . . . . . . . . . . . . . . . . . Time 72 | . . . 53 . . . . 19 . . . . . . . . . . . . . . . . . Parts Recycled . | . . . . . . . . . . . . . . . . . . . . . . . . . . Recycled Matter . | . . . . . . . . . . . . . . . . . . . . . . . . . . Retrieved Matter . | . . . . . . . . . . . . . . . . . . . . . . . . . . Retrieved Components 14 | . . . . . 5 . . 9 . . . . . . . . . . . . . . . . . Parts Scanalyzed . | . . . . . . . . . . . . . . . . . . . . . . . . . . Part Schematics Acquired . | . . . . . . . . . . . . . . . . . . . . . . . . . . Parts Damaged . | . . . . . . . . . . . . . . . . . . . . . . . . . . Bothacking | -11 -10 -10 -8 -8 -8 -6 -6 -5 -5 -5 -5 -4 -4 -4 -4 -4 -4 -4 -3 -3 -3 -2 -2 -1 -1 ------------ Run | Yrd Mat Sub Mat Sto Rec Fac DSF Fac Upp Upp War Pro Fac Was Fac Upp Upp Zhi Pro Res Tes Res Qua Acc Com Used RIF Installer . | . . . . . . . . . . . . . . . . . . . . . . . . . . Robots Hacked 2 | . . . . . . . . . . . . . . . . . . . . . . 2 . . . Non-combat 2 | . . . . . . . . . . . . . . . . . . . . . . 2 . . . Combat . | . . . . . . . . . . . . . . . . . . . . . . . . . . Robot Hacks Applied 2 | . . . . . . . . . . . . . . . . . . . . . . 2 . . . parse_system 2 | . . . . . . . . . . . . . . . . . . . . . . 2 . . . Relay Couplers Released 11 | . . . . . . . . 4 . . . . 4 . . . . . . . . 1 . 2 . Machine Destruction 3 | . . . . . . . . . . . . . . . . . . . . . . 1 . 2 . Programmers 8 | . . . . . . . . 4 . . . . 4 . . . . . . . . . . . . Fabnet Peak Effective % . | . . . . . . . . . . . . . . . . . . . . . . . . . . Robots Rewired 17 | . . . . . 12 . . . . . 5 . . . . . . . . . . . . . . Allies Hacked . | . . . . . . . . . . . . . . . . . . . . . . . . . . Hacks Repelled . | . . . . . . . . . . . . . . . . . . . . . . . . . . Allies | -11 -10 -10 -8 -8 -8 -6 -6 -5 -5 -5 -5 -4 -4 -4 -4 -4 -4 -4 -3 -3 -3 -2 -2 -1 -1 -------- Run | Yrd Mat Sub Mat Sto Rec Fac DSF Fac Upp Upp War Pro Fac Was Fac Upp Upp Zhi Pro Res Tes Res Qua Acc Com Total Allies 34 | . 2 . . 12 12 . . . . . 5 . . . . . . . . . . . . 3 . Largest Group 10 | . 2 2 2 10 9 9 9 . . . 5 . . . . . . . . . . . . 3 . Highest-Rated Group 379 | . 20 20 20 173 180 180 180 . . . 284 . . . . . . . . . . . . 379 . Highest-Rated Ally 135 | . 10 10 10 31 27 27 27 . . . 64 . . . . . . . . . . . . 135 . Total Orders 23 | . . . . 2 3 2 . . . . 16 . . . . . . . . . . . . . . STAY 9 | . . . . 1 1 1 . . . . 6 . . . . . . . . . . . . . . FOLLOW 4 | . . . . 1 2 1 . . . . . . . . . . . . . . . . . . . AID 10 | . . . . . . . . . . . 10 . . . . . . . . . . . . . . Ally Attacks 174 | . . . . 134 19 . 6 . . . 9 . . . . . . . . . . . . 6 . Total Damage 2685 | . . . . 1758 396 . 94 . . . 274 . . . . . . . . . . . . 163 . Kills 28 | . . . . 20 6 . . . . . 1 . . . . . . . . . . . . 1 . Allies Corrupted . | . . . . . . . . . . . . . . . . . . . . . . . . . . Allies Melted 8 | . . . . 1 1 . . . . . 3 . . . . . . . . . . 3 . . . Intel | -11 -10 -10 -8 -8 -8 -6 -6 -5 -5 -5 -5 -4 -4 -4 -4 -4 -4 -4 -3 -3 -3 -2 -2 -1 -1 ------- Run | Yrd Mat Sub Mat Sto Rec Fac DSF Fac Upp Upp War Pro Fac Was Fac Upp Upp Zhi Pro Res Tes Res Qua Acc Com Active Infowar (turns) 20739 | 29 1233 243 1422 1884 2006 214 254 1950 489 425 1346 478 1301 198 1189 456 482 393 478 1315 1962 909 . 27 56 Optics 8765 | . . . . . . . . . . . 680 478 1296 198 1189 456 482 393 478 1315 1800 . . . . Sensors 15179 | . . . 1086 1882 1693 . . 1625 489 425 660 453 1145 47 200 456 482 262 448 1306 1528 909 . 27 56 Structural 223 | . 2 . . 221 . . . . . . . . . . . . . . . . . . . . . Seismic 3084 | 29 1231 243 366 . 313 214 254 434 . . . . . . . . . . . . . . . . . Cloaking 2757 | . . . . . . . . . . . 6 . 1252 87 . . . . . 68 487 857 . . . Jamming 151 | . . . . . . . . 29 . . . . . . . . . . . . . 122 . . . ECM 1593 | . . . 165 . . . . . . . . . . . 320 . . . . 254 79 775 . . . Robot Analysis Total 10 | . . . . . 3 . . . . . . . 2 . . . . 4 . . 1 . . . . Derelict Logs Recovered 3 | . . . . . . . . . 1 1 . . . . . . 1 . . . . . . . . Drone Launches . | . . . . . . . . . . . . . . . . . . . . . . . . . . Drone Recoveries . | . . . . . . . . . . . . . . . . . . . . . . . . . . Exploration | -11 -10 -10 -8 -8 -8 -6 -6 -5 -5 -5 -5 -4 -4 -4 -4 -4 -4 -4 -3 -3 -3 -2 -2 -1 -1 ------------- Run | Yrd Mat Sub Mat Sto Rec Fac DSF Fac Upp Upp War Pro Fac Was Fac Upp Upp Zhi Pro Res Tes Res Qua Acc Com Turns Passed 26554 | 113 1233 243 1682 1969 5626 214 257 2259 558 504 1358 478 1312 198 1199 456 482 393 478 1315 2267 1263 218 394 85 Spaces Moved 14693 | 41 653 123 839 740 1780 120 98 1316 354 354 953 292 779 129 805 399 425 266 392 727 1385 833 165 538 187 Core 556 | 3 . . . . 1 . . . . . . . . . . . . . . . . 389 . 159 4 Treads 5769 | 38 653 123 839 740 1323 . . 584 96 . . . . . 229 . . 170 392 543 . 39 . . . Legs 3648 | . . . . . . . . 219 . . 139 292 779 129 143 . . . . 184 1385 378 . . . Wheels 3966 | . . . . . 456 120 98 513 258 354 814 . . . 433 399 425 96 . . . . . . . Hover . | . . . . . . . . . . . . . . . . . . . . . . . . . . Flight 754 | . . . . . . . . . . . . . . . . . . . . . . 27 165 379 183 Fastest Speed 32 | 50 160 160 160 160 135 135 135 103 104 104 104 128 128 128 98 98 98 98 98 98 107 50 92 35 32 Average Speed 138 | 151 160 160 161 226 248 141 171 121 126 104 107 128 128 128 111 98 98 98 98 131 109 102 92 57 35 Slowest Speed 1700 | 160 160 160 240 243 1700 172 172 186 129 104 128 128 128 128 128 98 98 98 98 200 181 350 92 92 50 Overloaded Moves 6 | . . . . . . . . . . . . . . . . . . . . . . . . . 6 Propulsion Burnouts . | . . . . . . . . . . . . . . . . . . . . . . . . . . Robots Hopped 6 | . . . . . . . . . . . . . . . . . . . . . . . . 6 . Potential Cave-ins 5 | . . . . . . . . . . . . . . . . . . . 1 2 2 . . . . Cave-ins Triggered . | . . . . . . . . . . . . . . . . . . . . . . . . . . Teleports 1 | . . . . . . . . . . . . . . . . . . . . . . . 1 . . Exploration Rate (%) 47 | 4 99 13 41 93 99 3 53 28 42 50 91 58 26 80 27 74 62 62 60 18 87 23 20 18 9 Regions Visited 25 Branch Regions 14 Pre-discovered Areas 4 | . . . . . . . . . 1 . . . . . . . . 3 . . . . . . . Known Exits Taken 19 | . . . 1 1 1 1 . 1 1 1 1 1 . . 1 1 1 1 1 1 1 1 1 1 . Unknown Exits Taken 3 | 1 1 1 . . . . . . . . . . . . . . . . . . . . . . . Scrap Searched 9 | . . . . . . . . . 1 2 . 1 . . . 2 2 . 1 . . . . . . Spaces Dug 297 | . 1 . 1 6 6 2 5 22 2 13 . 21 22 . 21 43 4 . 17 33 61 5 2 9 1 Terrain Destroyed 872 | 4 4 . 71 15 32 3 17 61 15 45 4 30 77 1 59 91 12 . 55 52 194 11 8 10 1 Melee . | . . . . . . . . . . . . . . . . . . . . . . . . . . Projectile 621 | . 2 . 1 7 32 3 17 61 15 45 4 30 70 1 54 9 12 . 19 52 157 11 8 10 1 AOE 251 | 4 2 . 70 8 . . . . . . . . 7 . 5 82 . . 36 . 37 . . . . Terrain Rammed . | . . . . . . . . . . . . . . . . . . . . . . . . . . Walls Destroyed . | . . . . . . . . . . . . . . . . . . . . . . . . . . Machines Disabled . | . . . . . . . . . . . . . . . . . . . . . . . . . . Actions | -11 -10 -10 -8 -8 -8 -6 -6 -5 -5 -5 -5 -4 -4 -4 -4 -4 -4 -4 -3 -3 -3 -2 -2 -1 -1 --------- Run | Yrd Mat Sub Mat Sto Rec Fac DSF Fac Upp Upp War Pro Fac Was Fac Upp Upp Zhi Pro Res Tes Res Qua Acc Com Total 19722 | 66 765 147 1067 930 2852 166 158 1835 451 446 1270 377 1013 149 1009 450 475 393 457 1001 2019 1210 208 603 205 Wait 2841 | . 35 6 103 48 765 26 23 232 65 37 165 64 111 5 96 35 34 104 35 150 378 290 9 21 4 Move 14657 | 40 652 122 838 739 1779 119 97 1315 353 353 952 291 779 128 804 398 424 265 391 726 1384 832 164 525 187 Hop 6 | . . . . . . . . . . . . . . . . . . . . . . . . 6 . Pick Up 245 | 5 17 2 24 22 18 6 6 46 8 3 10 . 13 1 4 . 1 4 . 16 25 5 1 8 . Fast Attach 86 | 7 . . 5 6 2 1 1 8 . . 3 . 3 2 5 1 . 6 . 10 10 4 2 8 2 Attach 86 | . 1 . 4 5 5 2 . 11 3 . 2 . 1 1 1 1 . . 1 2 17 13 4 7 5 Detach 44 | . . . . 3 3 . . 3 2 . 1 . . . 1 1 . . 1 1 9 7 3 6 3 Swap 152 | 2 9 6 23 33 6 . . 8 . 4 2 5 22 1 1 . . . 2 8 20 . . . . Drop 269 | 1 8 3 20 25 33 9 1 55 5 5 12 . 10 . 3 1 1 8 . 9 32 19 1 8 . Fire 1127 | 11 43 8 50 48 143 3 28 157 15 44 20 17 74 11 93 13 15 6 27 79 144 38 24 14 2 Melee 2 | . . . . . . . . . . . . . . . . . . . . . . 2 . . . Ram 3 | . . . . . . . 2 . . . . . . . . . . . . . . . . . 1 Kick 1 | . . . . . . . . . . . 1 . . . . . . . . . . . . . . Crush 1 | . . . . . . . . . . . . . . . 1 . . . . . . . . . . Escape Stasis 1 | . . . . . . . . . . . . . . . . . . . . . . . . . 1 Rewire 201 | . . . . 1 98 . . . . . 102 . . . . . . . . . . . . . . Trap . | . . . . . . . . . . . . . . . . . . . . . . . . . . Miscellaneous . | . . . . . . . . . . . . . . . . . . . . . . . . . . Route ------- -11/Scrapyard -10/Materials (discovered 5 exits: [*Mat x3] / [*Min] / [*Sub]) -10/Subcaves (discovered 2 exits: *Mat / *Rec) -8/Materials -8/Storage (discovered 2 exits: [*Fac] / *Rec) -8/Recycling -6/Factory -6/DSF -5/Factory (discovered 3 exits: *Fac / *Upp x2) -5/Upper Caves -5/Upper Caves -5/Warlord -4/Proximity Caves -4/Factory (discovered 5 exits: *Res x2 / Upp x2 / Arm) -4/Waste -4/Factory (discovered 4 exits: *Res / *Upp x2 / Arm) -4/Upper Caves -4/Upper Caves (discovered 2 exits: *Res / *Zhi) -4/Zhirov -3/Proximity Caves -3/Research (discovered 5 exits: Res x3 / *Tes x2) -3/Testing -2/Research -2/Quarantine -1/Access (discovered 2 exits: Sur / *Com) -1/Command History --------- Turn | Location | Event 2 | -11/Scrapyard | Met Revision 17 31 | -11/Scrapyard | Discovered new exit (range 16) 114 | -11/Scrapyard | Entered Materials 183 | -10/Materials | Discovered new exit (range 5) 303 | -10/Materials | Build established: Mutant 357 | -10/Materials | Discovered new exit (range 12) 710 | -10/Materials | Central database locked down 776 | -10/Materials | Discovered new exit (range 11) 952 | -10/Materials | Discovered new exit (range 11) 1320 | -10/Materials | Discovered new exit (range 11) 1347 | -10/Materials | Entered Subcaves 1347 | -10/Subcaves | Accompanied by 2 allies 1348 | -10/Subcaves | Approached by a straggling Scientist 1499 | -10/Subcaves | Discovered new exit (range 7) 1546 | -10/Subcaves | Discovered new exit (range 10) 1590 | -10/Subcaves | Entered Materials 1590 | -8/Materials | Accompanied by 2 allies 1590 | -8/Materials | Evolved 4 slots: Power x1, Propulsion x1, Utility x2 2302 | -8/Materials | Identified exit to Storage 2797 | -8/Materials | Repaired Broken EM Pulse Cannon 3272 | -8/Materials | Entered Storage 3551 | -8/Storage | Assisted by bots powering up and referring to "LRC-V3" 3851 | -8/Storage | Build established: Commander-Mutant 4153 | -8/Storage | Build established: Mutant 4154 | -8/Storage | Discovered new exit (range 20) 4724 | -8/Storage | Used back door to open Recycling access 4724 | -8/Storage | Discovered new exit (range 5) 4914 | -8/Storage | Met a pair of Derelict thieves 5108 | -8/Storage | Garrison activated, responded to threat 5237 | -8/Storage | Identified exit to Recycling 5241 | -8/Storage | Entered Recycling 5241 | -8/Recycling | Accompanied by 1 ally 5453 | -8/Recycling | Lost 3 allies 5713 | -8/Recycling | Build established: Scavenger-Mutant 5800 | -8/Recycling | Discovered new exit (range 16) 6896 | -8/Recycling | Entered Scraplab 6939 | -8/Recycling | Found Prototype Device 6939 | -8/Recycling | Identified Scrap Engine 6971 | -8/Recycling | Build established: Commander-Mutant 7320 | -8/Recycling | Identified exit to Factory 7656 | -8/Recycling | Build established: Commander-Construct 10867 | -8/Recycling | Entered Factory 10867 | -6/Factory | Accompanied by 9 allies 10867 | -6/Factory | Evolved 4 slots: Propulsion x1, Utility x2, Weapon x1 11021 | -6/Factory | Identified exit to DSF 11081 | -6/Factory | Entered DSF 11081 | -6/DSF | Accompanied by 9 allies 11098 | -6/DSF | Additional patrols routed to DSF 11142 | -6/DSF | Lost 5 allies 11308 | -6/DSF | Discovered new exit (range 11) 11338 | -6/DSF | Entered Factory 11338 | -5/Factory | Evolved 2 slots: Propulsion x1, Utility x1 11358 | -5/Factory | Lost 3 allies 11422 | -5/Factory | Fabricated Imp. Coolant Injector (x2) 11530 | -5/Factory | Repaired Cryofiber Web 11559 | -5/Factory | Build established: Construct 12443 | -5/Factory | Discovered new exit (range 15) 12464 | -5/Factory | Identified exit to Factory 13262 | -5/Factory | Identified exit to Upper Caves 13365 | -5/Factory | System corruption reached 10% 13597 | -5/Factory | Entered Upper Caves 13800 | -5/Upper Caves | Attracted the attention of an 0b10 checkpoint 13921 | -5/Upper Caves | Learned location of Armory (-4) 14053 | -5/Upper Caves | Found DCF Scrap (14 items) 14094 | -5/Upper Caves | Encountered a Warlord checkpoint 14140 | -5/Upper Caves | Discovered new exit (range 14) 14154 | -5/Upper Caves | Identified exit to Upper Caves 14155 | -5/Upper Caves | Entered another Upper Caves area 14207 | -5/Upper Caves | Ambushed by research squad 14297 | -5/Upper Caves | Learned Factory terminal intel 14616 | -5/Upper Caves | Encountered a Warlord checkpoint 14647 | -5/Upper Caves | Discovered new exit (range 9) 14658 | -5/Upper Caves | Identified exit to Warlord 14659 | -5/Upper Caves | Entered Warlord 14694 | -5/Warlord | System corruption cleaned by Quarantine Array 15135 | -5/Warlord | Met Warlord 15160 | -5/Warlord | Warlord's base attacked by MAIN.C 15224 | -5/Warlord | Found Prototype Energy Gun 15261 | -5/Warlord | Build established: Commander-Construct 15314 | -5/Warlord | Found Prototype Reactor 15319 | -5/Warlord | Found Prototype Device 15319 | -5/Warlord | Identified Thermal Barrier 15331 | -5/Warlord | Found Prototype Device 15331 | -5/Warlord | Identified Exp. Cloaking Device 15337 | -5/Warlord | Found Prototype Processor 15337 | -5/Warlord | Identified Spectral Analyzer 15348 | -5/Warlord | Found Prototype Hackware 15510 | -5/Warlord | Warlord forces counterattacked 15523 | -5/Warlord | Lost 3 allies 15588 | -5/Warlord | Lost 3 allies 15605 | -5/Warlord | Spotted B-86 Titan 15606 | -5/Warlord | Spotted Striker 15607 | -5/Warlord | Spotted B-75 Beast 15639 | -5/Warlord | Destroyed B-75 Beast 15661 | -5/Warlord | Spotted Striker 15667 | -5/Warlord | Lost 7 allies 15723 | -5/Warlord | Spotted Striker 15725 | -5/Warlord | Spotted Executioner 15731 | -5/Warlord | Spotted Executioner 15781 | -5/Warlord | Lost 18 allies 15835 | -5/Warlord | Warlord base infiltrated, sounded retreat 15848 | -5/Warlord | Spotted Striker 15851 | -5/Warlord | Spotted Executioner 15888 | -5/Warlord | Spotted Striker 15894 | -5/Warlord | Spotted Executioner 15903 | -5/Warlord | Lost 8 allies 15940 | -5/Warlord | Spotted Striker 16000 | -5/Warlord | Spotted Executioner 16007 | -5/Warlord | Discovered new exit (range 10) 16013 | -5/Warlord | Build established: Construct 16016 | -5/Warlord | Identified exit to Proximity Caves 16017 | -5/Warlord | Entered Proximity Caves 16219 | -4/Proximity Caves | Spotter reported a threat 16481 | -4/Proximity Caves | Discovered exit to Factory (range 12) 16495 | -4/Proximity Caves | Entered Factory 16495 | -4/Factory | Evolved 2 slots: Propulsion x1, Utility x1 16496 | -4/Factory | Loaded intel: 26 terminal locations 16511 | -4/Factory | Identified System Mapper 16610 | -4/Factory | Identified exit to Upper Caves 16610 | -4/Factory | Identified exit to Armory 16799 | -4/Factory | Build established: Hacker-Construct 17583 | -4/Factory | Discovered new exit (range 23) 17619 | -4/Factory | Identified exit to Research 17670 | -4/Factory | Discovered exit to Research (range 21) 17756 | -4/Factory | Fabricated Adv. Thermal Generator? 17807 | -4/Factory | Sucked down chute 17807 | -4/Factory | Entered Waste 17857 | -4/Waste | Spotted C-40 Crusher 17890 | -4/Waste | Spotted C-40 Crusher 17894 | -4/Waste | Crushed by Compactor (1 part destroyed, 1 dropped) 17904 | -4/Waste | Crushed by Compactor (0 parts destroyed, 1 dropped) 17915 | -4/Waste | Spotted C-40 Crusher 17915 | -4/Waste | Spotted C-40 Crusher 17916 | -4/Waste | Spotted C-40 Crusher 17919 | -4/Waste | Crushed by Compactor (1 part destroyed) 17947 | -4/Waste | Spotted C-40 Crusher 17977 | -4/Waste | Discovered new exit (range 13) 18001 | -4/Waste | Identified exit to Factory 18005 | -4/Waste | Entered Factory 18142 | -4/Factory | Discovered exit to Research (range 20) 18605 | -4/Factory | Spotted B-86 Titan 18933 | -4/Factory | Spotted B-86 Titan 19204 | -4/Factory | Entered Upper Caves 19442 | -4/Upper Caves | Encountered a Warlord checkpoint 19639 | -4/Upper Caves | Discovered new exit (range 15) 19653 | -4/Upper Caves | Identified exit to Upper Caves 19660 | -4/Upper Caves | Entered another Upper Caves area 19660 | -4/Upper Caves | Discovered exit to Research (range 7) 20121 | -4/Upper Caves | Discovered new exit (range 8) 20131 | -4/Upper Caves | Learned 8 Research zone layouts 20141 | -4/Upper Caves | Identified exit to Zhirov 20142 | -4/Upper Caves | Entered Zhirov 20142 | -4/Zhirov | Discovered new exit (range 3) 20160 | -4/Zhirov | Met Zhirov 20182 | -4/Zhirov | Learned location of Quarantine (-2) 20182 | -4/Zhirov | Learned location of Testing (-3) 20182 | -4/Zhirov | Learned location of Command (-1) 20189 | -4/Zhirov | Zhirov requested help retrieving the SGEMP Prototype 20217 | -4/Zhirov | Found Alien Artifact 20217 | -4/Zhirov | Identified Integrated Dissipator 20217 | -4/Zhirov | Installed Integrated Dissipator, increased core heat dissipation (+20) 20418 | -4/Zhirov | Found Alien Artifact 20455 | -4/Zhirov | Identified exit to Proximity Caves 20535 | -4/Zhirov | Entered Proximity Caves 20652 | -3/Proximity Caves | Spotted B-86 Titan 20946 | -3/Proximity Caves | Discovered exit to Research (range 9) 21013 | -3/Proximity Caves | Entered Research 21013 | -3/Research | Evolved 2 slots: Utility x2 21523 | -3/Research | Found Unknown Protection 21523 | -3/Research | Identified Adv. Powered Armor 22131 | -3/Research | Identified exit to Testing 22131 | -3/Research | Identified exit to Research 22328 | -3/Research | Entered Testing 22342 | -3/Testing | Found Prototype Energy Cannon 22576 | -3/Testing | Found Prototype Device 22576 | -3/Testing | Identified 2N-1CE's Frost Array 22725 | -3/Testing | Found Prototype Protection 22725 | -3/Testing | Identified Lgt. Regenerative Plating 22728 | -3/Testing | Found Prototype Protection 22728 | -3/Testing | Identified Med. Regenerative Plating 22733 | -3/Testing | Found Prototype Protection 23009 | -3/Testing | Found Prototype Energy Gun 23088 | -3/Testing | Spotted PG-AARZGSJ4P4 23253 | -3/Testing | Found Prototype Ballistic Cannon 23450 | -3/Testing | Found Prototype Energy Cannon 23593 | -3/Testing | Spotted Striker 23598 | -3/Testing | Spotted Striker 23633 | -3/Testing | Found Quantum Capacitor 23689 | -3/Testing | System corruption reached 10% 23905 | -3/Testing | Found Prototype Energy Cannon 23991 | -3/Testing | Identified Hpw. Disruptor Cannon 23991 | -3/Testing | Identified Omega Cannon 23991 | -3/Testing | Identified SHELL Armor 24078 | -3/Testing | First assault squad dispatched 24106 | -3/Testing | Destroyed Striker 24302 | -3/Testing | Spotted Alpha 7 24313 | -3/Testing | Destroyed Striker 24326 | -3/Testing | Identified Null Cannon 24358 | -3/Testing | Destroyed Alpha 7 24389 | -3/Testing | Stole the SGEMP Prototype 24595 | -3/Testing | Entered Research 24595 | -2/Research | Warlord forces began assault on 0b10 24595 | -2/Research | Evolved 2 slots: Utility x1, Weapon x1 24600 | -2/Research | Identified Warp Gun 24612 | -2/Research | Lost 3 parts (2u1w) 24637 | -2/Research | Build established: Hacker-Mutant 24705 | -2/Research | Research machine network offline 25208 | -2/Research | Warlord destroyed during the assault 25277 | -2/Research | Borebot progress halted 25370 | -2/Research | Borebot progress halted 25406 | -2/Research | Borebot progress halted 25499 | -2/Research | Lost 3 parts (3u) 25535 | -2/Research | Core integrity fell below 50% 25554 | -2/Research | Lost 4 parts (1p2u1w) 25657 | -2/Research | Discovered new exit (range 13) 25683 | -2/Research | Identified exit to Quarantine 25688 | -2/Research | Found Warlord Statue 25858 | -2/Research | Entered Quarantine 25869 | -2/Quarantine | Found Alien Artifact 25869 | -2/Quarantine | Identified Transdimensional Reconstructor (x2) 25869 | -2/Quarantine | Warped through subspace 25910 | -2/Quarantine | Found Alien Artifact 25930 | -2/Quarantine | Identified exit to Access 25957 | -2/Quarantine | Cryocooling Duct disabled 25972 | -2/Quarantine | Ambient heat levels rising (+20) 25972 | -2/Quarantine | Non-combat units ordered to evacuate 26076 | -2/Quarantine | Entered Access 26076 | -1/Access | Evolved 2 slots: Power x1, Utility x1 26077 | -1/Access | Delivered the SGEMP Prototype to Zhirov 26077 | -1/Access | Zhirov transferred Access data 26078 | -1/Access | Loaded intel: 110 machine locations 26078 | -1/Access | Loaded intel: 61 trap records 26078 | -1/Access | Identified exit to Surface 26078 | -1/Access | Discovered exit to Surface (range 121) 26078 | -1/Access | Identified exit to Command 26078 | -1/Access | Discovered exit to Command (range 210) 26094 | -1/Access | Garrison activated, responded to threat 26096 | -1/Access | Zhirov warped through subspace 26114 | -1/Access | Lost 3 parts (2u1w) 26205 | -1/Access | Spotted B-99 Colossus 26277 | -1/Access | Released all parts (4) 26370 | -1/Access | Build established: Mutant 26376 | -1/Access | Found Prototype Device 26376 | -1/Access | Identified Exp. Thermal Defense Suite 26392 | -1/Access | Core integrity fell below 50% 26470 | -1/Access | Entered Command 26497 | -1/Command | Spotted B-99 Colossus 26523 | -1/Command | Spotted Alpha 7 26523 | -1/Command | Spotted Striker 26523 | -1/Command | Spotted Executioner 26523 | -1/Command | Spotted Executioner 26523 | -1/Command | Spotted Alpha 7 26523 | -1/Command | Spotted Striker 26523 | -1/Command | Spotted Executioner 26523 | -1/Command | Spotted Executioner 26525 | -1/Command | Spotted B-99 Colossus 26527 | -1/Command | Spotted B-99 Colossus 26529 | -1/Command | Core integrity fell below 20% 26543 | -1/Command | Failed to warp due to unstable space 26545 | -1/Command | Identified Hpw. Transdimensional Reconstructor 26545 | -1/Command | Failed to warp due to unstable space 26555 | -1/Command | Destroyed by Executioner with Helical Railgun Last Messages --------------- 26545_ Identified Hpw. Transdimensional Reconstructor. 26545_ Warp failed due to unstable space. 26546_ Knocked back. 26548_ Operations Mainframe disabled. 26551_ System corrupted: Matter fused (-10). 26551_ K-01 Serf collects debris. 26551_ Cld. Impulse Thruster destroyed. 26551_ Slammed into Executioner. 26552_ Slug penetrates Wall. 26552_ Penetrated by Slug. 26552_ Slug penetrates Executioner. 26552_ Penetrated by Slug. 26554_ Slug penetrates Alpha 7. 26554_ Slug penetrates Wall. 26554_ Penetrated by Slug. 26554_ Slug penetrates Wall. 26555_ Penetrated by Slug. 26555_ Slug penetrates Executioner. 26555_ Penetrated by Slug. Map ----- +----------------------------------------------------+ | !! #? #????????????????????????? | | !! # #????????????????????????? | | ? ! # #????????????????????????? | | "" + #????????????????????????? | | """" # # #?????????????????????? | | """" ####### ###???????????????????? | | "" ????????????????? | | #?????????????????????? | | #?????????????????????? | | #?????????????????????? | | +?????????????????????? | | #?????????????????????? | | ############## #?????????????????????? | | ???# + #?????????????????????? | | ???# # #?????????????????????? | | ???# # #?????????????????????? | | ???# ] # #?????????????????????? | | ???# # #?????????????????????? | | ???# ""T"" # #?????????????????????? | | ???# """"" # k #?????????????????????? | | ???########### % 7 + """????????????????? | | ?????????????# #######k # """????????????????? | | ????????????##+""+###???# #?????????????????????? | | ????????????#% "#???#E #?????????????????????? | | ????????????# ^ ##??##EE#?????????????????????? | | ???????????# #??#;@ #?????????????????????? | | ???????????## ##??##7 #?????????????????????? | | ???????????? #??#; ##############????????? | | ???????????## ##??## E# #????????? | | ???????????? #???# K# #????????? | | ???????????## "#???# K #????????? | | ???????????? ^ #???# # #????????? | | ????????????# ^ ##???# # #????????? | | ???????????? ????# # #????????? | | ???????????? ???# w# % #????????? | | ???????????? ???# # ##???????? | | ???????????? """""" ???# # """ "#???????? | | ???????????? ?????? ??# k#= """" ##???????? | | ???????????? ???????????# # """" ##???????? | | ???????????? ???????????# # """" %#???????? | | ????????????????????????# #############"#???????? | | ????????????????????????# ????????????###???????? | | ????????????????????????# ??????????????????????? | | ????????????????????????? ??????????????????????? | | ????????????????????????? ??????????????????????? | | ????????????????????????? ??????????????????????? | | ?????????????????????????????????????????????????? | | ?????????????????????????????????????????????????? | | ?????????????????????????????????????????????????? | | ?????????????????????????????????????????????????? | +----------------------------------------------------+ Best States ------------- Heat Dissipation 197 Coolant Potential 80 Energy Generation 52 Energy Capacity 952 Matter Stores 300 Matter Capacity 300 Sight Range 24 Robot Scan Range 18 Terrain Scan Density 210 ECM Strength 1 Jamming Range 14 Cloak Strength 4 Power Amplification 20 Base Temperature (-) 100 Armor Coverage 1050 Resistance: TH 50 Evasion (%) 63 Targeting Accuracy 8 Recoil Reduction 4 Particle Charging 30 Offensive Hacking 20 Item Schematics ----------------- Hcp. Storage Unit | -10/Materials | Hacked Exp. Heat Sink | -4/Zhirov | Free Exp. Optical Array | -4/Zhirov | Free Imp. Arc Thrower | -4/Zhirov | Free Assault Drone Bay | -4/Zhirov | Free Robot Schematics ------------------ None Fabricated ------------ Imp. Coolant Injector | x2 | -5/Factory | Preloaded Adv. Thermal Generator | x2 | -4/Factory | Preloaded Repaired ---------- EM Pulse Cannon | 4% | -8/Materials | Broken Cryofiber Web | 43% | -5/Factory Alien Tech Used ----------------- Integrated Dissipator Transdimensional Reconstructor High-powered Transdimensional Reconstructor Achievements -------------- Special Delivery Challenges ------------ None Game ------ Seed AutogunLightTrap Manual? 0 Play Time 05:21:35 Cumulative 243.1 hours Start 2025.08.21 @ 16:56:36 End 2025.08.23 @ 09:06:42 Sessions 11 Manual Loads 0 Difficulty Rogue Special Mode None Game No. 170 Rogue 170 Adventurer 0 Explorer 0 Win Type - Total 2 Types 2/0/0/0/0/0/0/0/0/0 Lore% 70 Gallery% 67 Achievement% 57 Wizard Run 0 Options --------- Layout 1 ASCII 0 Keyboard 0 Movement Mouse Keybinds 0 Fullscreen 1 Font 32/SmallcapsGlow Map View 50x35 Zoom Use 0% Tactical HUD 1 Map Filters NONE Filters NONE Steam 1 RUN: 7dfe192e-6aac-4921-9094-24486c8b757f